Cogmind - Beta 10.2 *** ADVENTURER MODE // 2020.12.09 @ 13:17:48 Player: Luigi Panache Result: Destroyed by G-67 Veteran with Plasma Rifle Performance ------------- Evolutions (6) 3000 Regions Visited (16) 3200 Robots Destroyed (222) 1110 Value Destroyed (11143) 11143 Prototype IDs (29) 580 Alien Tech Used (0) 0 Bonus (5103) 5103 TOTAL SCORE: 24136 Bonus ------- High Alert Combat Kills 1398 Follower Combat Kills 605 Entered Garrisons 800 Used RIF Installer 2000 Aligned with FarCom 300 Cogmind --------- Core Integrity 0/1150 Matter 300/300 Energy 170/170 System Corruption 5% Temperature Cool (12) Movement Core (650) Ox12 Location -4/Factory Parts ------- > --- POWER (2) -------- Micro Fission Core > --- PROPULSION (6) --- (None) > --- UTILITY (7) ------ Advanced Heat Sink High-capacity Storage Unit Targeting Computer Improved Target Analyzer > --- WEAPON (4) ------- (None) > --- INVENTORY (12) --- Neutrino Core Micro Fission Core Light Antimatter Reactor Antigrav System Improved Heat Sink Improved Heat Sink High-capacity Storage Unit Relay Coupler [NC] (44) Remote Datajack Peak State ------------ > --- POWER ------------ Micro Fission Core Antimatter Reactor > --- PROPULSION ------- Flexi-carbon Leg Flexi-carbon Leg Flexi-carbon Leg Flexi-carbon Leg Flexi-carbon Leg Flexi-carbon Leg > --- UTILITY ---------- Advanced Heat Sink High-capacity Storage Unit Targeting Computer Targeting Computer Improved Target Analyzer Improved Phase Shifter Advanced Shield Generator > --- WEAPON ----------- Tesla Rifle Plasma Rifle Matter Neutralizer KE Penetrator > --- INVENTORY -------- Neutrino Core Micro Fission Core Light Antimatter Reactor Antigrav System Improved Heat Sink Improved Heat Sink Advanced Heat Sink High-capacity Storage Unit Relay Coupler [NC] Plasma Rifle Remote Datajack Mining Laser [Rating: 97] Favorites ----------- Power Cooled Deuterium Engine Engine Cooled Deuterium Engine Power Core Micro Fission Core Reactor Antimatter Reactor Propulsion Light Treads Treads Light Treads Leg Flexi-carbon Leg Wheel Armored Huge Wheel Hover Unit Improved Hover Unit Flight Unit Improved VTOL Module Utility High-capacity Storage Unit Device Advanced Heat Sink Storage High-capacity Storage Unit Processor Targeting Computer Protection Layered Medium Armor Plating Weapon KE Penetrator Energy Gun Precision Shock Rifle Energy Cannon Matter Neutralizer Ballistic Gun KE Penetrator Ballistic Cannon Gauss Cannon Launcher Grenade Launcher Special Weapon Field Lobotomy Kit Build | -11 -10 -10 -10 -9 -8 -7 -7 -7 -7 -6 -6 -5 -5 -5 -5 -4 ------- Run | Scr Mat Min Exi Min Mat Fac Gar Fac Gar Fac Ext Fac Gar Fac Gar Fac Slots Evolved 12 | . . . . . 4 2 . . . 2 . 2 . . . 2 Power 1 | . . . . . . . . . . . . 1 . . . . Propulsion 4 | . . . . . 2 1 . . . 1 . . . . . . Utility 5 | . . . . . 2 . . . . . . 1 . . . 2 Weapon 2 | . . . . . . 1 . . . 1 . . . . . . Parts Attached 226 | 8 4 1 3 3 32 23 11 5 11 8 22 16 11 4 7 57 Power 17 | 1 . . . . 1 1 . 2 . 1 . 2 . 1 1 7 Engine 6 | 1 . . . . . 1 . 2 . 1 . 1 . . . . Core 9 | . . . . . 1 . . . . . . 1 . 1 1 5 Reactor 2 | . . . . . . . . . . . . . . . . 2 Propulsion 58 | 2 2 . . 2 11 4 . 1 2 . 10 4 3 1 4 12 Treads 33 | 2 . . . . 8 2 . 1 . . 5 3 3 1 2 6 Leg 11 | . . . . . . . . . . . 3 . . . 2 6 Wheel 7 | . . . . . . 2 . . 2 . 2 1 . . . . Hover 6 | . 2 . . 2 2 . . . . . . . . . . . Flight 1 | . . . . . 1 . . . . . . . . . . . Utility 60 | 2 2 . 3 . 12 5 2 . 4 2 2 4 4 2 . 16 Device 27 | 1 2 . . . 6 . 2 . 3 1 . 2 1 1 . 8 Storage 14 | 1 . . 3 . 1 3 . . 1 1 1 . . . . 3 Processor 5 | . . . . . 2 . . . . . . . . . . 3 Hackware . | . . . . . . . . . . . . . . . . . Protection 14 | . . . . . 3 2 . . . . 1 2 3 1 . 2 Artifact . | . . . . . . . . . . . . . . . . . Weapon 91 | 3 . 1 . 1 8 13 9 2 5 5 10 6 4 . 2 22 Energy Gun 24 | 1 . . . . 3 8 3 1 3 . . . . . . 5 Energy Cannon 3 | . . . . . . 1 . . . . . . . . . 2 Ballistic Gun 50 | 2 . . . 1 4 1 6 1 2 5 10 5 3 . 2 8 Ballistic Cannon 1 | . . . . . . . . . . . . . . . . 1 Launcher 8 | . . 1 . . 1 2 . . . . . 1 1 . . 2 Special Weapon 5 | . . . . . . 1 . . . . . . . . . 4 Impact Weapon . | . . . . . . . . . . . . . . . . . Slashing Weapon . | . . . . . . . . . . . . . . . . . Piercing Weapon . | . . . . . . . . . . . . . . . . . Special Melee Weapon . | . . . . . . . . . . . . . . . . . Unidentified Prototypes 6 | . . . . . 1 2 . 1 . 1 . 1 . . . . Parts Lost 96 | . . . . 1 6 7 3 . 9 1 16 2 . . 4 47 Power 6 | . . . . . . 1 . . . 1 . 1 . . 1 2 Propulsion 31 | . . . . 1 1 1 1 . 2 . 6 . . . 3 16 Utility 19 | . . . . . 3 1 . . 1 . 1 1 . . . 12 Weapon 40 | . . . . . 2 4 2 . 6 . 9 . . . . 17 Highest Loss Streak 26 | . . . . 1 2 6 2 . 3 1 6 2 . . 2 26 Average Slot Usage (%) 85 | . 100 100 99 100 86 79 81 74 73 71 73 93 99 99 94 74 Engine 5 | . 14 14 14 14 2 2 7 6 7 5 6 4 5 5 1 . Core 2 | . . . . . 6 4 . . . . . 2 5 5 5 5 Treads 15 | . 15 . . . 23 21 7 7 4 . 8 24 35 35 27 8 Leg 2 | . . . . . . . . . . . 5 2 . . 5 16 Wheel 4 | . . . . . . 6 13 7 13 13 6 6 . . . . Hover 5 | . 13 28 28 28 10 . . . . . . . . . . . Device 6 | . 14 14 3 . 8 4 5 7 7 6 4 4 5 5 5 8 Storage 14 | . 14 14 23 28 9 9 15 15 19 20 20 13 11 11 11 9 Processor 1 | . . . . . 2 4 . . . . . . . . . 6 Protection 4 | . . . . . 5 2 8 7 2 . . 7 11 10 11 1 Energy Gun 6 | . 14 14 14 14 8 14 18 6 8 . . . . . . 3 Ballistic Gun 12 | . 14 2 . 4 8 3 3 15 8 25 21 19 22 23 23 9 Launcher 1 | . . 11 14 9 . 2 . . . . . 1 . . . . Naked Turns . | . . . . . . . . . . . . . . . . . Heaviest Build 131 | 14 14 15 74 74 95 131 93 92 92 93 97 106 114 123 123 121 Greatest Support 157 | 40 40 16 16 30 80 102 56 28 56 56 88 157 157 157 157 120 Greatest Overweight (x) 31 | . 1 . 4 4 31 4 4 4 4 1 30 4 . . 6 29 Average Overweight (x) 1 | . . . 1 3 1 1 2 3 1 1 2 1 . . . . Largest Inventory Capacity 40 | 6 6 6 24 20 32 40 20 20 20 20 20 20 20 20 20 24 Average Capacity 19 | 5 6 6 16 20 23 23 20 20 20 20 20 20 20 20 20 17 Most Carried 24 | 6 6 6 9 10 24 24 20 20 20 20 20 20 20 20 20 20 Average Carried 16 | 3 5 5 7 8 19 20 19 19 17 19 18 19 19 20 19 12 Final Capacity 24 | 6 6 6 20 20 24 20 20 20 20 20 20 20 20 20 20 12 Final Carried 20 | 6 6 6 9 10 18 19 18 20 20 19 20 20 20 20 20 9 Class Distribution -------------------- 22% | Scavenger-Tank 19% | Scavenger-Mutant 18% | Hauler-Mutant 18% | Hauler-Skirmisher 9% | Scavenger-Skirmisher 6% | Mutant 3% | Hauler-Tank Dominant Class ---------------- Mutant | -10/Materials Mutant | -10/Mines Hauler-Mutant | -10/Exiles Hauler-Mutant | -9/Mines Scavenger-Mutant | -8/Materials Scavenger-Mutant | -7/Factory Hauler-Skirmisher | -7/Garrison Hauler-Skirmisher | -7/Factory Hauler-Mutant | -7/Garrison Hauler-Skirmisher | -6/Factory Scavenger-Skirmisher | -6/Extension Scavenger-Tank | -5/Factory Scavenger-Tank | -5/Garrison Scavenger-Tank | -5/Factory Scavenger-Tank | -5/Garrison Scavenger-Skirmisher | -4/Factory Resources | -11 -10 -10 -10 -9 -8 -7 -7 -7 -7 -6 -6 -5 -5 -5 -5 -4 ----------- Run | Scr Mat Min Exi Min Mat Fac Gar Fac Gar Fac Ext Fac Gar Fac Gar Fac Matter Collected 6170 | 219 . 79 . 198 539 362 257 . 426 304 987 210 872 . 786 931 Remotely . | . . . . . . . . . . . . . . . . . Salvage Created 10182 | 24 . 58 . 86 1081 853 594 . 1188 359 1352 159 1278 . 1054 2096 Parts 496 | 5 . 13 . 6 44 55 34 . 61 21 64 12 63 . 37 81 Haulers Intercepted 5 | . . . . . 2 1 . . . . 2 . . . . . Recyclers Shooed 6 | 1 . . . . . 1 . . . . 3 . . . . 1 Parts Field Recycled . | . . . . . . . . . . . . . . . . . Retrieved Matter . | . . . . . . . . . . . . . . . . . Parts Self-Destructed . | . . . . . . . . . . . . . . . . . Prevented . | . . . . . . . . . . . . . . . . . Kills | -11 -10 -10 -10 -9 -8 -7 -7 -7 -7 -6 -6 -5 -5 -5 -5 -4 ------- Run | Scr Mat Min Exi Min Mat Fac Gar Fac Gar Fac Ext Fac Gar Fac Gar Fac Combat Hostiles Destroyed 197 | . . 9 . 6 19 19 16 . 27 2 19 2 31 . 21 26 Guns 153 | . . . . 4 16 10 15 . 25 2 19 2 20 . 21 19 Cannons 4 | . . . . . . . . . . . . . . . . 4 AOE 36 | . . 9 . 2 3 7 1 . 2 . . . 11 . . 1 Classes Destroyed 16 | 1 . 1 . 2 4 5 . . 1 1 1 . . . . . Worker 4 | . . . . . . 1 . . . . 2 . . . . 1 Builder 3 | . . . . . . 2 . . . 1 . . . . . . Tunneler 2 | 1 . . . . . . . . . 1 . . . . . . Hauler 5 | . . . . . 2 1 . . . . 2 . . . . . Recycler 5 | . . . . . . . . . . 1 1 . . . . 3 Operator 3 | . . . . . 2 . . . . . 1 . . . . . Watcher 6 | . . . . . 2 1 . . . 1 . . . . . 2 Swarmer 81 | . . 9 . . 2 10 10 . 10 . 7 . 21 . 8 4 Grunt 68 | . . . . 3 13 5 5 . 9 1 4 . 5 . 9 14 Brawler 3 | . . . . . . . . . 1 . . . . . . 2 Duelist 4 | . . . . . . 1 . . 2 . . . . . . 1 Sentry 20 | . . . . . 4 1 . . 3 . 4 2 2 . 2 2 Hunter 4 | . . . . . . 1 . . . . 2 . . . 1 . Programmer 10 | . . . . . . 1 1 . 2 1 . . 2 . . 3 Behemoth 4 | . . . . . . . . . . . 2 . 1 . 1 . Assembled 3 | . . . . 3 . . . . . . . . . . . . Best Kill Streak 14 | 1 . 3 . 3 3 14 6 . 3 2 8 2 13 . 8 6 Combat Bots Only 13 | . . 3 . 3 3 9 6 . 3 1 7 2 13 . 8 4 Max Kills in Single Turn 3 | 1 . 3 . 1 3 3 1 . 2 2 2 1 3 . 2 2 Gunslinging 1 | . . . . . . . . . . . 1 . 1 . . 1 Exploded 3 | . . 3 . 1 3 2 1 . 2 . . . 3 . . 1 Melee . | . . . . . . . . . . . . . . . . . Uniques/NPCs Destroyed . | . . . . . . . . . . . . . . . . . Combat | -11 -10 -10 -10 -9 -8 -7 -7 -7 -7 -6 -6 -5 -5 -5 -5 -4 -------- Run | Scr Mat Min Exi Min Mat Fac Gar Fac Gar Fac Ext Fac Gar Fac Gar Fac Damage Taken 15278 | . . 36 . 223 1091 1187 680 . 1217 270 2531 276 974 . 1073 5720 Core 2107 | . . 6 . 46 113 116 90 . 144 28 250 16 66 . 66 1166 Absorbed by Shields 41 | . . . . . . . . . . . . . . . 25 16 Core Remaining (%) 76 | 100 . . . 79 79 . . . 50 . 67 . . . 85 . Volleys Fired 540 | 2 . 6 . 12 91 52 25 . 69 12 67 7 49 . 43 105 Largest 4 | 2 . 1 . 2 2 3 3 . 3 4 4 4 4 . 4 4 Hottest 300 | 70 . 30 . 70 112 165 165 . 179 104 109 102 122 . 129 300 Shots Fired 1370 | 3 . 6 . 18 178 111 72 . 147 36 209 22 174 . 172 222 Gun 1310 | 3 . . . 15 176 102 72 . 147 36 209 21 168 . 172 189 Cannon 26 | . . . . . . . . . . . . . . . . 26 Launcher 28 | . . 6 . 3 2 9 . . . . . 1 6 . . 1 Special 6 | . . . . . . . . . . . . . . . . 6 Kinetic 918 | 1 . . . 6 78 18 20 . 56 36 209 21 168 . 172 133 Thermal 250 | 2 . . . 9 98 . . . 65 . . . . . . 76 Explosive 20 | . . 6 . 3 2 9 . . . . . . . . . . Electromagnetic 177 | . . . . . . 84 52 . 26 . . 1 6 . . 8 Robot Hit Streak 37 | 3 . 9 . 15 27 19 13 . 18 13 19 37 36 . 34 28 Robot Miss Streak 6 | . . . . 1 2 2 2 . 3 4 6 . 2 . 1 3 Penetration Max 1 | . . . . . . . . . . 1 1 . 1 . 1 1 Secondary Targets 35 | . . . . . . 3 6 . 5 1 7 1 7 . 1 4 Max Gunslinging Chain 2 | . . . . . . 1 1 . 1 1 2 1 1 . 1 1 Shots Hit Robots 1050 | 3 . 6 . 14 152 85 48 . 107 28 160 21 122 . 116 188 Core Hits 548 | 1 . 9 . 11 61 49 30 . 77 15 101 8 59 . 45 82 Critical Hits 46 | . . . . . 1 . 1 . . 1 3 1 13 . 11 15 Critical Kills 16 | . . . . . . . . . . . 1 . 3 . 4 8 Critical Parts Destroyed 28 | . . . . . 1 . 1 . . 1 2 1 10 . 5 7 Melee Attacks . | . . . . . . . . . . . . . . . . . Impact . | . . . . . . . . . . . . . . . . . Slashing . | . . . . . . . . . . . . . . . . . Piercing . | . . . . . . . . . . . . . . . . . Sneak Attacks . | . . . . . . . . . . . . . . . . . Combat Hostiles . | . . . . . . . . . . . . . . . . . Follow-up Attacks . | . . . . . . . . . . . . . . . . . Damage Inflicted 22778 | 36 . 443 . 401 2368 2001 813 . 2103 586 3448 374 2905 . 2396 4904 Guns 19402 | 36 . . . 175 2150 1169 761 . 1831 586 3394 358 2460 . 2396 4086 Cannons 695 | . . . . . . . . . . . . . . . . 695 Explosions 2587 | . . 443 . 226 218 832 52 . 272 . . 16 445 . . 83 Melee . | . . . . . . . . . . . . . . . . . Ramming 70 | . . . . . . . . . . . 54 . . . . 16 Kinetic 14302 | 11 . . . 61 925 277 114 . 740 586 3394 358 2460 . 2396 2980 Thermal 4730 | 25 . . . 114 1225 429 52 . 1091 . . . 123 . . 1671 Explosive 1290 | . . 443 . 226 218 403 . . . . . . . . . . Electromagnetic 2386 | . . . . . . 892 647 . 272 . . 16 322 . . 237 Impact . | . . . . . . . . . . . . . . . . . Slashing . | . . . . . . . . . . . . . . . . . Piercing . | . . . . . . . . . . . . . . . . . Highest Corruption 7 | . . . . 2 . 6 6 6 7 . . . . . . 5 Average Corruption 5 | . . . . 2 . 5 6 6 6 . . . . . . 2 Corruption Purged . | . . . . . . . . . . . . . . . . . Effects 103 | . . . . 3 . 30 19 2 41 . . . . . . 8 Message Errors 21 | . . . . 1 . 5 5 1 7 . . . . . . 2 Matter Fused 18 | . . . . . . 7 2 . 9 . . . . . . . Heat Flow Errors 15 | . . . . 1 . 4 2 . 8 . . . . . . . Energy Discharges 11 | . . . . 1 . 2 1 1 4 . . . . . . 2 Parts Rejected 2 | . . . . . . 1 . . 1 . . . . . . . Data Loss (minor) 11 | . . . . . . . 3 . 5 . . . . . . 3 Data Loss (major) 3 | . . . . . . 2 1 . . . . . . . . . Misfires 4 | . . . . . . 3 1 . . . . . . . . . Targeting Errors 15 | . . . . . . 5 3 . 6 . . . . . . 1 Weapon Failures 3 | . . . . . . 1 1 . 1 . . . . . . . Overload Shots . | . . . . . . . . . . . . . . . . . Overflow Damage 55 | . . 7 . . . 39 . . . . . . . . . 9 Projectiles 9 | . . . . . . . . . . . . . . . . 9 Explosions 46 | . . 7 . . . 39 . . . . . . . . . . Melee . | . . . . . . . . . . . . . . . . . Knockbacks 4 | . . . . . . . . . . . 1 . . . . 3 Impact 1 | . . . . . . . . . . . 1 . . . . . Kinetic 2 | . . . . . . . . . . . . . . . . 2 Secondary 1 | . . . . . . . . . . . . . . . . 1 Self-Inflicted Damage 357 | . . 13 . . . 55 33 . 141 . 14 . . . 95 6 Shots 13 | . . 1 . . . 5 1 . 4 . . . . . 2 . Rammed 8 | . . . . . . . . . . . 3 . . . . 5 Targets Rammed 10 | . . . . . . . . . . . 5 . . . . 5 Kicked 2 | . . . . . . . . . . . 2 . . . . . Crushed . | . . . . . . . . . . . . . . . . . Highest Temperature 732 | 9 . . . 217 306 344 234 . 250 10 60 106 36 . 15 732 Average Temperature 87 | 6 . . . 47 96 84 91 . 66 7 24 53 15 . 8 186 Received Heat Transfer 3207 | . . . . 39 603 102 126 . 261 87 645 81 150 . 186 927 Effects 21 | . . . . 1 . . 1 . . . . . . . . 19 Shutdowns 4 | . . . . . . . . . . . . . . . . 4 Energy Bleed 4 | . . . . 1 . . 1 . . . . . . . . 2 Interference 7 | . . . . . . . . . . . . . . . . 7 Matter Decay 1 | . . . . . . . . . . . . . . . . 1 Damage (minor) 3 | . . . . . . . . . . . . . . . . 3 Damage (major) 1 | . . . . . . . . . . . . . . . . 1 Damage (core) 1 | . . . . . . . . . . . . . . . . 1 Siege Activations . | . . . . . . . . . . . . . . . . . Robots Corrupted 2 | . . . . . . 2 . . . . . . . . . . Combat Hostiles 2 | . . . . . . 2 . . . . . . . . . . Parts Fried 15 | . . . . . . 7 6 . . . . . . . . 2 Impact Corruptions . | . . . . . . . . . . . . . . . . . Robots Melted 2 | . . . . . . . . . . . . . . . . 2 Combat Hostiles 2 | . . . . . . . . . . . . . . . . 2 Parts Melted 16 | . . . . . 6 . . . 1 . . . . . . 9 Heat Transferred 8962 | 74 . . . 333 3182 450 75 . 1989 . . . 150 . . 2709 Parts Sabotaged 2 | . . . . . . . . . . . . . . . . 2 Parts Stolen . | . . . . . . . . . . . . . . . . . Parts Stripped . | . . . . . . . . . . . . . . . . . Power Chain Reactions 9 | . . . . . . 3 1 . 3 . . . 2 . . . Missiles Intercepted . | . . . . . . . . . . . . . . . . . Alert | -11 -10 -10 -10 -9 -8 -7 -7 -7 -7 -6 -6 -5 -5 -5 -5 -4 ------- Run | Scr Mat Min Exi Min Mat Fac Gar Fac Gar Fac Ext Fac Gar Fac Gar Fac Peak Influence 1115 | 5 6 211 . 30 284 295 471 213 1096 691 291 177 988 449 1115 795 Initial 507 | . 2 1 . . 3 52 78 213 131 498 201 122 109 449 276 507 Average 346 | 2 4 129 . 5 121 109 235 213 602 565 189 151 653 449 700 535 Maximum Alert Level 4 | . . 1 . . 1 1 2 1 3 2 1 . 3 2 4 3 Low Security (%) 42 | 100 100 50 . 100 90 75 49 . 13 . 48 100 5 . . . Level 1 18 | . . 50 . . 9 24 31 100 16 . 51 . 24 . 14 2 Level 2 23 | . . . . . . . 18 . 27 100 . . 18 100 35 80 Level 3 15 | . . . . . . . . . 41 . . . 51 . 45 17 Level 4 . | . . . . . . . . . . . . . . . 4 . Level 5 . | . . . . . . . . . . . . . . . . . High Security . | . . . . . . . . . . . . . . . . . Max Security . | . . . . . . . . . . . . . . . . . Squads Dispatched 23 | . . . . . 2 4 . . . 5 2 . . . . 10 Investigation 5 | . . . . . . 1 . . . 2 . . . . . 2 Extermination 4 | . . . . . . 1 . . . 1 . . . . . 2 Reinforcement 9 | . . . . . 2 2 . . . . 2 . . . . 3 Assault 4 | . . . . . . . . . . 1 . . . . . 3 Garrison 1 | . . . . . . . . . . 1 . . . . . . Intercept . | . . . . . . . . . . . . . . . . . Construction Impeded 4 | . . . . . . 1 . . . . 1 . . . . 2 Haulers Reinforced 1 | . . . . . . 1 . . . . . . . . . . Stealth | -11 -10 -10 -10 -9 -8 -7 -7 -7 -7 -6 -6 -5 -5 -5 -5 -4 --------- Run | Scr Mat Min Exi Min Mat Fac Gar Fac Gar Fac Ext Fac Gar Fac Gar Fac Distress Signals 10 | . . . . . 6 . . . . . 3 . . . . 1 Communications Jammed . | . . . . . . . . . . . . . . . . . Distress Signals . | . . . . . . . . . . . . . . . . . Times Spotted 276 | . . 6 . 6 45 23 18 . 32 9 30 2 31 . 25 49 Peak Tracking Total 14 | . . 2 . 11 6 5 6 . 4 5 6 2 8 . 9 14 Tactical Retreats 13 | . . . . 1 1 . 1 . 2 . 1 . 1 . 4 2 Traps | -11 -10 -10 -10 -9 -8 -7 -7 -7 -7 -6 -6 -5 -5 -5 -5 -4 ------- Run | Scr Mat Min Exi Min Mat Fac Gar Fac Gar Fac Ext Fac Gar Fac Gar Fac Traps Triggered 30 | . . . . . . 4 5 1 7 6 . . 4 . 2 1 Indirectly 4 | . . . . . . . . . . . . . 4 . . . Trap Hack Attempts . | . . . . . . . . . . . . . . . . . Triggered . | . . . . . . . . . . . . . . . . . Disarmed . | . . . . . . . . . . . . . . . . . Reprogrammed . | . . . . . . . . . . . . . . . . . Reused . | . . . . . . . . . . . . . . . . . Traps Extracted . | . . . . . . . . . . . . . . . . . Installed . | . . . . . . . . . . . . . . . . . Triggered . | . . . . . . . . . . . . . . . . . Machines | -11 -10 -10 -10 -9 -8 -7 -7 -7 -7 -6 -6 -5 -5 -5 -5 -4 ---------- Run | Scr Mat Min Exi Min Mat Fac Gar Fac Gar Fac Ext Fac Gar Fac Gar Fac Machines Disabled 29 | . . . . . 1 9 1 . 7 . 2 . 3 . 6 . Max in Single Turn 2 | . . . . . 1 2 1 . 2 . 1 . 1 . 2 . Garrison Relay 8 | . . . . . . . 1 . 3 . . . 3 . 1 . Phase Generator 2 | . . . . . . . . . 1 . . . . . 1 . Machines Sabotaged . | . . . . . . . . . . . . . . . . . Garrisons Compromised . | . . . . . . . . . . . . . . . . . Overloaded Fab Kills . | . . . . . . . . . . . . . . . . . Fab Network Shutdowns . | . . . . . . . . . . . . . . . . . Hacking | -11 -10 -10 -10 -9 -8 -7 -7 -7 -7 -6 -6 -5 -5 -5 -5 -4 --------- Run | Scr Mat Min Exi Min Mat Fac Gar Fac Gar Fac Ext Fac Gar Fac Gar Fac Machines Accessed 22 | . 2 . 2 . 5 3 . 1 . 1 2 2 . 1 . 3 Terminals 10 | . 1 . . . 4 1 . . . 1 2 . . . . 1 Fabricators 1 | . . . . . . . . . . . . . . . . 1 Repair Stations 3 | . . . . . 1 . . . . . . 1 . . . 1 Recycling Units 1 | . 1 . . . . . . . . . . . . . . . Scanalyzers 1 | . . . . . . 1 . . . . . . . . . . Garrison Access 4 | . . . . . . 1 . 1 . . . 1 . 1 . . Total Hacks 64 | . 4 . 10 . 18 8 . 1 . 2 8 3 . 1 . 9 Successful 33 | . 4 . 10 . 10 2 . 1 . 1 1 1 . 1 . 2 Failed 31 | . . . . . 8 6 . . . 1 7 2 . . . 7 Catastrophic 4 | . . . . . . . . . . 1 1 . . . . 2 Database Lockouts . | . . . . . . . . . . . . . . . . . Manual 23 | . 1 . 1 . 13 2 . . . 2 4 . . . . . Terminals 31 | . 2 . . . 14 3 . . . 2 8 . . . . 2 Fabricators 3 | . . . . . . . . . . . . . . . . 3 Repair Stations 10 | . . . . . 4 . . . . . . 2 . . . 4 Recycling Units 2 | . 2 . . . . . . . . . . . . . . . Scanalyzers 2 | . . . . . . 2 . . . . . . . . . . Garrison Access 6 | . . . . . . 3 . 1 . . . 1 . 1 . . Terminal Hacks 16 | . 1 . 10 . 2 1 . . . 1 1 . . . . . Record 9 | . . . 9 . . . . . . . . . . . . . Open Door 1 | . . . . . . . . . . . 1 . . . . . Branch Access Points 1 | . . . . . . . . . . 1 . . . . . . Terminal Index 2 | . 1 . . . 1 . . . . . . . . . . . Recall Reinforcements 1 | . . . . . 1 . . . . . . . . . . . Zone Layout 1 | . . . . . . 1 . . . . . . . . . . EX-Prototype ID Bank 1 | . . . 1 . . . . . . . . . . . . . Fabricator Hacks 1 | . . . . . . . . . . . . . . . . 1 Network Status 1 | . . . . . . . . . . . . . . . . 1 Repair Station Hacks 5 | . . . . . 4 . . . . . . . . . . 1 Scan Component 3 | . . . . . 2 . . . . . . . . . . 1 Repair 2 | . . . . . 2 . . . . . . . . . . . Recycling Unit Hacks 2 | . 2 . . . . . . . . . . . . . . . Report Inventory 1 | . 1 . . . . . . . . . . . . . . . Retrieve Components 1 | . 1 . . . . . . . . . . . . . . . Scanalyzer . | . . . . . . . . . . . . . . . . . Garrison Access Hacks 4 | . . . . . . 1 . 1 . . . 1 . 1 . . Unlock Access 4 | . . . . . . 1 . 1 . . . 1 . 1 . . Unauthorized Hacks 5 | . 1 . . . 4 . . . . . . . . . . . Terminals 5 | . 1 . . . 4 . . . . . . . . . . . Track 3 | . 1 . . . 2 . . . . . . . . . . . Botnet 1 | . . . . . 1 . . . . . . . . . . . Operators 1 | . . . . . 1 . . . . . . . . . . . Fabricators . | . . . . . . . . . . . . . . . . . Repair Stations . | . . . . . . . . . . . . . . . . . Recycling Units . | . . . . . . . . . . . . . . . . . Scanalyzers . | . . . . . . . . . . . . . . . . . Garrison Access . | . . . . . . . . . . . . . . . . . Data Cores Recovered 1 | . . . . . 1 . . . . . . . . . . . Used . | . . . . . . . . . . . . . . . . . Hacking Detections 17 | . 1 . . . 5 3 . 1 . 1 2 1 . . . 3 Full Trace Events 4 | . . . . . . 1 . . . 1 . . . . . 2 Feedback Events . | . . . . . . . . . . . . . . . . . Feedback Blocked . | . . . . . . . . . . . . . . . . . Robot Schematics Acquired . | . . . . . . . . . . . . . . . . . Robots Built . | . . . . . . . . . . . . . . . . . Matter . | . . . . . . . . . . . . . . . . . Time . | . . . . . . . . . . . . . . . . . Total Robot Build Rating . | . . . . . . . . . . . . . . . . . Part Schematics Acquired . | . . . . . . . . . . . . . . . . . Parts Built . | . . . . . . . . . . . . . . . . . Matter . | . . . . . . . . . . . . . . . . . Time . | . . . . . . . . . . . . . . . . . Total Part Build Rating . | . . . . . . . . . . . . . . . . . Parts Repaired 2 | . . . . . 2 . . . . . . . . . . . Time 58 | . . . . . 58 . . . . . . . . . . . Parts Recycled . | . . . . . . . . . . . . . . . . . Recycled Matter . | . . . . . . . . . . . . . . . . . Retrieved Matter . | . . . . . . . . . . . . . . . . . Retrieved Components 1 | . 1 . . . . . . . . . . . . . . . Parts Scanalyzed . | . . . . . . . . . . . . . . . . . Part Schematics Acquired . | . . . . . . . . . . . . . . . . . Parts Damaged . | . . . . . . . . . . . . . . . . . Bothacking | -11 -10 -10 -10 -9 -8 -7 -7 -7 -7 -6 -6 -5 -5 -5 -5 -4 ------------ Run | Scr Mat Min Exi Min Mat Fac Gar Fac Gar Fac Ext Fac Gar Fac Gar Fac Used RIF Installer 4 | . . . . . . . 1 . 1 . . . 1 . 1 . Robot Detection 1 | . . . . . . . . . 1 . . . . . . . Watcher Feeds 1 | . . . . . . . . . . . . . . . 1 . Structural Interface 1 | . . . . . . . . . . . . . 1 . . . Robots Hacked . | . . . . . . . . . . . . . . . . . Non-combat . | . . . . . . . . . . . . . . . . . Combat . | . . . . . . . . . . . . . . . . . Robot Hacks Applied . | . . . . . . . . . . . . . . . . . Relay Couplers Released 34 | . . . . . . . 4 . 12 . . . 14 . 4 . Machine Destruction 34 | . . . . . . . 4 . 12 . . . 14 . 4 . Robots Rewired 7 | . . . . . . . . . 3 . 4 . . . . . Allies Hacked . | . . . . . . . . . . . . . . . . . Hacks Repelled . | . . . . . . . . . . . . . . . . . Allies | -11 -10 -10 -10 -9 -8 -7 -7 -7 -7 -6 -6 -5 -5 -5 -5 -4 -------- Run | Scr Mat Min Exi Min Mat Fac Gar Fac Gar Fac Ext Fac Gar Fac Gar Fac Total Allies 14 | . . . . 1 . . . . 3 . 5 . . . . 5 Largest Group 5 | . . . . 1 1 . . . 3 3 5 . . . . 2 Highest-Rated Group 139 | . . . . 31 31 . . . 63 63 139 . . . . 103 Highest-Rated Ally 56 | . . . . 31 31 . . . 21 21 37 . . . . 56 Total Orders . | . . . . . . . . . . . . . . . . . Ally Attacks 110 | . . . . . 13 . . . 3 36 13 . . . . 45 Total Damage 2304 | . . . . . 168 . . . 43 848 371 . . . . 874 Kills 21 | . . . . . 2 . . . 2 6 7 . . . . 4 Allies Corrupted 1 | . . . . . . . . . . . . . . . . 1 Allies Melted 1 | . . . . . . . . . . 1 . . . . . . Field Lobotomies 5 | . . . . . . . . . . . . . . . . 5 Intel | -11 -10 -10 -10 -9 -8 -7 -7 -7 -7 -6 -6 -5 -5 -5 -5 -4 ------- Run | Scr Mat Min Exi Min Mat Fac Gar Fac Gar Fac Ext Fac Gar Fac Gar Fac Robot Analysis Total . | . . . . . . . . . . . . . . . . . Derelict Logs Recovered 2 | . . 1 . 1 . . . . . . . . . . . . Drone Launches . | . . . . . . . . . . . . . . . . . Drone Recoveries . | . . . . . . . . . . . . . . . . . Exploration | -11 -10 -10 -10 -9 -8 -7 -7 -7 -7 -6 -6 -5 -5 -5 -5 -4 ------------- Run | Scr Mat Min Exi Min Mat Fac Gar Fac Gar Fac Ext Fac Gar Fac Gar Fac Turns Passed 12022 | 115 136 426 471 669 1402 1365 623 80 1229 499 1128 375 1036 230 1155 1083 Spaces Moved 6028 | 57 136 562 332 214 485 665 220 42 694 363 487 223 498 138 576 336 Core 19 | 3 . . . . 1 . . . . . 13 . . . . 2 Treads 2595 | 54 41 . . . 329 472 103 15 64 . 43 86 498 138 575 177 Legs 222 | . . . . . . . . . . . 64 . . . 1 157 Wheels 1834 | . . . . . . 193 117 27 630 363 367 137 . . . . Hover 1358 | . 95 562 332 214 155 . . . . . . . . . . . Flight . | . . . . . . . . . . . . . . . . . Fastest Speed 50 | 50 56 56 56 196 115 110 110 120 110 110 110 120 160 160 160 120 Average Speed 146 | 154 89 56 138 286 182 159 169 161 120 110 171 139 160 160 160 158 Slowest Speed 1600 | 160 160 56 296 296 1600 225 225 225 225 110 1550 240 160 160 300 1500 Overloaded Moves . | . . . . . . . . . . . . . . . . . Propulsion Burnouts . | . . . . . . . . . . . . . . . . . Robots Hopped . | . . . . . . . . . . . . . . . . . Cave-ins Triggered . | . . . . . . . . . . . . . . . . . Exploration Rate (%) 41 | 6 23 90 71 53 41 21 47 1 91 13 63 6 81 5 92 6 Regions Visited 16 Branch Regions 4 Pre-discovered Areas 2 | . . 2 . . . . . . . . . . . . . . Known Exits Taken 5 | . . . . . . 1 . 1 . 1 . 1 . 1 . . Unknown Exits Taken 7 | 1 1 1 1 1 1 . . . . . 1 . . . . . Scrap Searched 2 | . . 2 . . . . . . . . . . . . . . Spaces Dug . | . . . . . . . . . . . . . . . . . Terrain Destroyed 457 | . . 42 . 25 6 13 3 . 175 . . . 24 . 156 13 Melee . | . . . . . . . . . . . . . . . . . Projectile 36 | . . . . . . . . . . . . . 14 . 9 13 AOE 421 | . . 42 . 25 6 13 3 . 175 . . . 10 . 147 . Terrain Rammed . | . . . . . . . . . . . . . . . . . Walls Destroyed . | . . . . . . . . . . . . . . . . . Machines Disabled . | . . . . . . . . . . . . . . . . . Actions | -11 -10 -10 -10 -9 -8 -7 -7 -7 -7 -6 -6 -5 -5 -5 -5 -4 --------- Run | Scr Mat Min Exi Min Mat Fac Gar Fac Gar Fac Ext Fac Gar Fac Gar Fac Total 8188 | 77 154 666 345 252 828 875 415 55 961 444 642 283 641 150 709 691 Wait 1001 | 6 . 96 . 23 178 102 115 3 101 28 33 5 64 . 72 175 Move 6014 | 56 135 561 331 213 484 665 219 41 693 362 486 222 497 138 575 336 Hop . | . . . . . . . . . . . . . . . . . Pick Up 106 | 5 5 1 6 1 22 14 2 3 10 4 10 12 4 2 3 2 Fast Attach 100 | 7 4 . 3 . 9 8 1 5 5 3 12 8 4 2 3 26 Attach 66 | . . . . 1 10 9 2 . 5 3 8 5 1 . . 22 Detach 13 | . 1 . . . 3 1 . . . . . 2 1 . . 5 Swap 60 | 1 . 1 . 2 13 6 8 . 1 2 2 3 6 2 4 9 Drop 119 | . 9 1 5 . 18 14 3 3 5 6 3 19 14 6 7 6 Fire 540 | 2 . 6 . 12 91 52 25 . 69 12 67 7 49 . 43 105 Melee . | . . . . . . . . . . . . . . . . . Ram 2 | . . . . . . . . . . . 1 . . . . 1 Kick 7 | . . . . . . . . . . . 3 . . . . 4 Crush 1 | . . . . . . . . . . . 1 . . . . . Escape Stasis 119 | . . . . . . 4 40 . 48 24 . . 1 . 2 . Rewire 40 | . . . . . . . . . 24 . 16 . . . . . Trap . | . . . . . . . . . . . . . . . . . Miscellaneous . | . . . . . . . . . . . . . . . . . Route ------- -11/Scrapyard -10/Materials -10/Mines (discovered 3 exits: [*Mat x2] / *Exi) -10/Exiles -9/Mines -8/Materials (discovered 2 exits: *Fac x2) -7/Factory -7/Garrison -7/Factory -7/Garrison (discovered 3 exits: *Fac x3) -6/Factory (discovered 4 exits: Low x2 / *Ext x2) -6/Extension (discovered 2 exits: *Fac / [*Cet]) -5/Factory -5/Garrison (discovered 3 exits: *Fac x3) -5/Factory (discovered 2 exits: [*Upp] / Gar) -5/Garrison (discovered 3 exits: *Fac x3) -4/Factory History --------- Turn | Location | Event 2 | -11/Scrapyard | Met Revision 17 65 | -11/Scrapyard | Discovered new exit (range 13) 116 | -11/Scrapyard | Entered Materials 244 | -10/Materials | Discovered new exit (range 14) 252 | -10/Materials | Entered Mines 261 | -10/Mines | Met a Derelict bent on vengeance 314 | -10/Mines | Build established: Mutant 522 | -10/Mines | Discovered new exit (range 7) 523 | -10/Mines | Learned location of Storage (-7) 602 | -10/Mines | Discovered new exit (range 16) 660 | -10/Mines | Learned location of Zion (-7) 675 | -10/Mines | Deemed a non-threat by the Exiles lab entrance 675 | -10/Mines | Discovered new exit (range 5) 678 | -10/Mines | Entered Exiles 693 | -10/Exiles | Met 8R-AWN 703 | -10/Exiles | Met EX-HEX 720 | -10/Exiles | Met EX-BIN 732 | -10/Exiles | Aligned with FarCom system 733 | -10/Exiles | Given EX-Vault access code 746 | -10/Exiles | Opened EX-Vault 750 | -10/Exiles | Found Field Lobotomy Kit 762 | -10/Exiles | Warned to stay clear of 0b10 Research branches 930 | -10/Exiles | Met EX-DEC 1105 | -10/Exiles | Build established: Hauler-Mutant 1111 | -10/Exiles | Discovered new exit (range 14) 1149 | -10/Exiles | Left Exiles lab with Field Lobotomy Kit 1149 | -10/Exiles | Entered Mines 1399 | -9/Mines | Learned Materials security intel 1590 | -9/Mines | Assembled infested the area 1779 | -9/Mines | Discovered new exit (range 12) 1806 | -9/Mines | Received a Mining Laser from a helpful Derelict 1818 | -9/Mines | Entered Materials 1818 | -8/Materials | Accompanied by 1 ally 1818 | -8/Materials | Evolved 4 slots: Propulsion x2, Utility x2 1884 | -8/Materials | Repaired Imp. Hover Unit 1916 | -8/Materials | Repaired Grenade Launcher 2438 | -8/Materials | Build established: Scavenger-Mutant 2601 | -8/Materials | Discovered new exit (range 14) 3191 | -8/Materials | Discovered new exit (range 16) 3220 | -8/Materials | Entered Factory 3220 | -7/Factory | Evolved 2 slots: Propulsion x1, Weapon x1 4075 | -7/Factory | Destroyed 9 combat bots 4160 | -7/Factory | Lost 6 parts (1p1n1u3w) 4585 | -7/Factory | Identified exit to Garrison 4585 | -7/Factory | Entered Garrison 4597 | -7/Garrison | Installed Relay Interface Framework 4657 | -7/Garrison | Build established: Hauler-Tank 4658 | -7/Garrison | Triggered checkpoint 5035 | -7/Garrison | Garrison Relay disabled 5103 | -7/Garrison | Triggered checkpoint 5197 | -7/Garrison | Discovered new exit (range 10) 5208 | -7/Garrison | Entered Factory 5279 | -7/Factory | Identified exit to Garrison 5288 | -7/Factory | Entered Garrison 5361 | -7/Garrison | Build established: Hauler-Skirmisher 5408 | -7/Garrison | Triggered checkpoint 5459 | -7/Garrison | Garrison Relay disabled 5526 | -7/Garrison | Triggered checkpoint 5583 | -7/Garrison | Discovered new exit (range 13) 5667 | -7/Garrison | Phase Generator disabled 5746 | -7/Garrison | Triggered checkpoint 5808 | -7/Garrison | Triggered checkpoint 5904 | -7/Garrison | Garrison Relay disabled 5956 | -7/Garrison | Triggered checkpoint 6021 | -7/Garrison | Discovered new exit (range 3) 6113 | -7/Garrison | Lost 3 parts (1n2w) 6113 | -7/Garrison | Triggered checkpoint 6219 | -7/Garrison | Garrison Relay disabled 6246 | -7/Garrison | Triggered checkpoint 6253 | -7/Garrison | Triggered checkpoint 6288 | -7/Garrison | Triggered checkpoint 6345 | -7/Garrison | Build established: Hauler-Mutant 6446 | -7/Garrison | Triggered checkpoint 6494 | -7/Garrison | Discovered new exit (range 11) 6512 | -7/Garrison | Expanded RIF knowledge: Robot Detection 6517 | -7/Garrison | Entered Factory 6517 | -6/Factory | Accompanied by 3 allies 6517 | -6/Factory | Evolved 2 slots: Propulsion x1, Weapon x1 6867 | -6/Factory | First assault squad dispatched 6884 | -6/Factory | Build established: Hauler-Skirmisher 6947 | -6/Factory | Identified exit to Lower Caves 6947 | -6/Factory | Identified exit to Extension 6959 | -6/Factory | Garrison activated, responded to threat 7016 | -6/Factory | Entered Extension 7428 | -6/Extension | Rescued a captive Derelict 7498 | -6/Extension | Lost 3 parts (2n1w) 7633 | -6/Extension | Spotted B-75 Beast 7649 | -6/Extension | Destroyed B-75 Beast 7660 | -6/Extension | Spotted B-75 Beast 7687 | -6/Extension | Destroyed B-75 Beast 7715 | -6/Extension | Lost 6 parts (3n3w) 7816 | -6/Extension | Disrupted transfer network 7850 | -6/Extension | Lost 3 parts (1u2w) 7932 | -6/Extension | Destroyed 7 combat bots 8115 | -6/Extension | Discovered new exit (range 16) 8115 | -6/Extension | Discovered new exit (range 16) 8144 | -6/Extension | Entered Factory 8144 | -5/Factory | Evolved 2 slots: Power x1, Utility x1 8222 | -5/Factory | Build established: Scavenger-Skirmisher 8512 | -5/Factory | Identified exit to Garrison 8519 | -5/Factory | Entered Garrison 8542 | -5/Garrison | Triggered checkpoint 8574 | -5/Garrison | Garrison Relay disabled 8593 | -5/Garrison | Build established: Scavenger-Tank 8696 | -5/Garrison | Spotted B-75 Beast 8753 | -5/Garrison | Destroyed B-75 Beast 8792 | -5/Garrison | Triggered checkpoint 8836 | -5/Garrison | Triggered checkpoint 8870 | -5/Garrison | Destroyed 13 combat bots 8930 | -5/Garrison | Discovered new exit (range 10) 8964 | -5/Garrison | Triggered checkpoint 9021 | -5/Garrison | Garrison Relay disabled 9098 | -5/Garrison | Triggered checkpoint 9260 | -5/Garrison | Discovered new exit (range 10) 9310 | -5/Garrison | Triggered checkpoint 9392 | -5/Garrison | Garrison Relay disabled 9517 | -5/Garrison | Discovered new exit (range 12) 9549 | -5/Garrison | Expanded RIF knowledge: Structural Interface 9555 | -5/Garrison | Entered Factory 9555 | -5/Factory | Discovered new exit (range 11) 9785 | -5/Factory | Identified exit to Garrison 9785 | -5/Factory | Entered Garrison 9864 | -5/Garrison | Triggered checkpoint 9951 | -5/Garrison | Garrison Relay disabled 10082 | -5/Garrison | Spotted B-75 Beast 10135 | -5/Garrison | Destroyed 8 combat bots 10363 | -5/Garrison | Destroyed B-75 Beast 10410 | -5/Garrison | Triggered checkpoint 10423 | -5/Garrison | Triggered checkpoint 10440 | -5/Garrison | Triggered checkpoint 10503 | -5/Garrison | Phase Generator disabled 10523 | -5/Garrison | Discovered new exit (range 12) 10569 | -5/Garrison | Triggered checkpoint 10740 | -5/Garrison | Triggered checkpoint 10767 | -5/Garrison | Discovered new exit (range 14) 10908 | -5/Garrison | Discovered new exit (range 9) 10934 | -5/Garrison | Expanded RIF knowledge: Patrol Navigation 10940 | -5/Garrison | Entered Factory 10940 | -4/Factory | Evolved 2 slots: Utility x2 11190 | -4/Factory | First assault squad dispatched 11318 | -4/Factory | Assimilated E-15 Imp with FLK Orb 11321 | -4/Factory | Assimilated G-67 Veteran with FLK Orb 11409 | -4/Factory | Assimilated G-67 Veteran with FLK Orb 11412 | -4/Factory | Assimilated H-77 Assassin with FLK Orb 11456 | -4/Factory | Lost 26 parts (1p8n6u11w) 11486 | -4/Factory | Core integrity fell below 50% 11487 | -4/Factory | Assimilated P-70 Sage with FLK Orb 11925 | -4/Factory | Core integrity fell below 20% 11946 | -4/Factory | Lost 8 parts (2n2u4w) 12023 | -4/Factory | Destroyed by G-67 Veteran with Plasma Rifle Last Messages --------------- 11997_ OD6GCP8TYCGBEF:WGOPU 11997_ G-67 Veteran critical meltdown. 11997_ Adv. Heat Sink melted. 11998_ Flexi-carbon Leg destroyed. 12004_ Plasma Rifle destroyed. 12006_ R-10 Processor collects Flexi-carbon Leg. 12007_ Acquired 10 matter. 12007_ Mining Laser destroyed. 12007_ Flexi-carbon Leg destroyed. 12009_ G-67 Veteran heat short circuits Plasma Rifle. 12011_ Slammed into G-67 Veteran. 12014_ Antimatter Reactor destroyed. 12014_ Critical hit. 12014_ Flexi-carbon Leg destroyed. 12015_ Slammed into G-67 Veteran. 12016_ Flexi-carbon Leg destroyed. 12017_ Slammed into G-67 Veteran. 12018_ Adv. Heat Sink destroyed. 12020_ Targeting Computer destroyed. 12022_ P-70 Sage resets P-70 Sage, system corruption cleaned. Map ----- +----------------------------------------------------+ | ???"""""" " ???????????? | | ?? """"" " ""??????????? | | # """""" " """?????????? | | # " """?????????? | | ?????### +? ?????????? | | ???????# / #? """ #???????? | | ???????# # #? """ ? ??? | | ???????#### # ""??# #?? | | ???????##### +#### # ???# #?? | | ???????# = # # ????# #?? | | ???????# # # #?????# #?? | | ???????# #% %######### #?? | | ???????# # # # #?? | | ???????########### # """" # ### | | ?????????????????# # ""R" # # | | ?????????????????# # "" " # # | | ?????????????????# # # # | | ??????????""" # # * # # | | ????????# + %%+%[ ! # # | | ??????????""" # #! # =# | | ??????????????! # %%# # =%+% | | ????????????? ?# # # ! !# | | ???????????? ??# %%# # %%= # | | ???????########### ######### = # | | ???????# %%g#% % %%" % # [ | | ???????# %@pp% R m # = | | ???????# %g#% % ##+ | | ???????# # ## | | ???????# # % ## | | ???????# # ###+####"+ | | ???????# # # %%% | | ???????# # % #! | | ???????########### %# %% % | | ?????????????????# # | | ?????????????????# # | | ?????????????????# %# | | ?????????????????# # | | ?????????????????# #% | | ?????????????????# # | | ?????????????????+ # | | ?????????????????# ########## | | ?????????????????# #??? | | ?????????????????# #??? | | ?????????????????# #???" """ | | ?????????????????# #???? ""? | | ?????????????????# #???? "??? | | ?????????????????# ?????????? | | ?????????????????? =?????????? | | ?????????????????? !%?????????? | | ???????????????????? !|?????????? | +----------------------------------------------------+ Best States ------------- Heat Dissipation 100 Coolant Potential 50 Energy Generation 35 Energy Capacity 525 Matter Stores 450 Matter Capacity 450 Sight Range 16 Robot Scan Range 13 Terrain Scan Range 16 Terrain Scan Density 10 Armor Coverage 450 Resistance: KI 20 Resistance: TH 20 Resistance: EX 20 Resistance: EM 20 Resistance: I 20 Resistance: S 20 Resistance: P 20 Phase Shifting 10 Evasion (%) 53 Targeting Accuracy 10 Target Analysis 6 Recoil Reduction 6 Offensive Hacking 10 Item Schematics ----------------- None Robot Schematics ------------------ None Fabricated ------------ Nothing Alien Tech Used ----------------- None Achievements -------------- None Challenges ------------ None Game ------ Seed ImpulseMatterCompressor Manual? 0 Play Time 02:03:31 Cumulative 131.3 hours Start 2020.12.08 @ 23:56:07 End 2020.12.09 @ 13:17:48 Sessions 10 Manual Loads 0 Difficulty Adventurer Special Mode None Game No. 105 Rogue 31 Adventurer 36 Explorer 38 Win Type - Total 6 Types 6/0/0/0/0/0/0/0/0 Lore% 53 Gallery% 71 Achievement% 57 Wizard Run 0 Options --------- ASCII 0 Keyboard 0 Movement Mouse Keybinds 0 Fullscreen 2 Font 18/TerminusBold Map View 76x50 Tactical HUD 1 Map Filters NONE Filters NONE Steam 1 RUN: 7bcaa048-21a5-4694-8620-af2c78c55c5f